[Event "Titled Tuesday Blitz February 15 Early 2022"]
[White "Alavi, Sayed Javad"]
[Black "Vokhidov, Shamsiddin"]
[WhiteFideId "12500607"]
[BlackFideId "14204223"]
[WhiteElo "2475"]
[BlackElo "2611"]
[Result "1-0"]
[Round "02"]
[TimeControl "180+1"]
[Date "2022.02.15"]
[WhiteClock "0:00:28"]
[BlackClock "0:00:21"]

1. e4 {[%clk 0:03:00]}  e5 {[%clk 0:02:59]} 2. Nf3 {[%clk 0:03:00]}  Nc6 {[%clk 0:03:00]} 3. d4 {[%clk 0:03:01]}  exd4 {[%clk 0:03:00]} 4. Nxd4 {[%clk 0:03:02]}  Nf6 {[%clk 0:03:00]} 5. Nc3 {[%clk 0:02:57]}  Bb4 {[%clk 0:02:59]} 6. Nxc6 {[%clk 0:02:58]}  bxc6 {[%clk 0:03:00]} 7. Bd3 {[%clk 0:02:58]}  d5 {[%clk 0:03:00]} 8. exd5 {[%clk 0:02:59]}  cxd5 {[%clk 0:03:01]} 9. O-O {[%clk 0:03:00]}  O-O {[%clk 0:03:02]} 10. Bg5 {[%clk 0:03:00]}  c6 {[%clk 0:03:01]} 11. Qf3 {[%clk 0:02:59]}  Bd6 {[%clk 0:02:58]} 12. Rfe1 {[%clk 0:02:52]}  Rb8 {[%clk 0:02:56]} 13. b3 {[%clk 0:02:51]}  h6 {[%clk 0:02:53]} 14. Bh4 {[%clk 0:02:46]}  Rb4 {[%clk 0:02:21]} 15. Bg3 {[%clk 0:02:37]}  Bg4 {[%clk 0:02:19]} 16. Bxd6 {[%clk 0:02:37]}  Qxd6 {[%clk 0:01:59]} 17. Qg3 {[%clk 0:02:37]}  Qxg3 {[%clk 0:01:59]} 18. hxg3 {[%clk 0:02:38]}  Rd8 {[%clk 0:01:53]} 19. Na4 {[%clk 0:02:28]}  Kf8 {[%clk 0:01:50]} 20. f3 {[%clk 0:02:17]}  Bc8 {[%clk 0:01:49]} 21. Re2 {[%clk 0:02:16]}  Re8 {[%clk 0:01:46]} 22. Rae1 {[%clk 0:02:15]}  Rxe2 {[%clk 0:01:46]} 23. Rxe2 {[%clk 0:02:15]}  Rb7 {[%clk 0:01:41]} 24. Ba6 {[%clk 0:02:05]}  Rc7 {[%clk 0:01:41]} 25. Bxc8 {[%clk 0:02:04]}  Rxc8 {[%clk 0:01:42]} 26. Kf2 {[%clk 0:02:01]}  c5 {[%clk 0:01:40]} 27. Re5 {[%clk 0:02:01]}  c4 {[%clk 0:01:35]} 28. c3 {[%clk 0:01:59]}  d4 {[%clk 0:01:13]} 29. cxd4 {[%clk 0:01:33]}  c3 {[%clk 0:01:13]} 30. Re1 {[%clk 0:01:32]}  Nd5 {[%clk 0:01:04]} 31. Rc1 {[%clk 0:01:30]}  c2 {[%clk 0:01:04]} 32. Nc5 {[%clk 0:01:27]}  Nb4 {[%clk 0:01:03]} 33. Ke3 {[%clk 0:01:21]}  Re8+ {[%clk 0:00:51]} 34. Kd2 {[%clk 0:01:21]}  Rd8 {[%clk 0:00:51]} 35. a3 {[%clk 0:00:55]}  Rxd4+ {[%clk 0:00:50]} 36. Kc3 {[%clk 0:00:55]}  Rd1 {[%clk 0:00:50]} 37. Kb2 {[%clk 0:00:53]}  Nd5 {[%clk 0:00:35]} 38. Rxc2 {[%clk 0:00:49]}  Ne3 {[%clk 0:00:32]} 39. Re2 {[%clk 0:00:45]}  Nf5 {[%clk 0:00:32]} 40. g4 {[%clk 0:00:45]}  Nd4 {[%clk 0:00:32]} 41. Nd7+ {[%clk 0:00:45]}  Kg8 {[%clk 0:00:32]} 42. Re8+ {[%clk 0:00:46]}  Kh7 {[%clk 0:00:33]} 43. Nf8+ {[%clk 0:00:46]}  Kg8 {[%clk 0:00:32]} 44. Ne6+ {[%clk 0:00:45]}  Kh7 {[%clk 0:00:33]} 45. Nxd4 {[%clk 0:00:45]}  Rxd4 {[%clk 0:00:34]} 46. Kc3 {[%clk 0:00:42]}  Rd7 {[%clk 0:00:32]} 47. b4 {[%clk 0:00:42]}  Kg6 {[%clk 0:00:31]} 48. a4 {[%clk 0:00:40]}  f5 {[%clk 0:00:31]} 49. gxf5+ {[%clk 0:00:38]}  Kxf5 {[%clk 0:00:32]} 50. b5 {[%clk 0:00:37]}  h5 {[%clk 0:00:29]} 51. a5 {[%clk 0:00:35]}  Kf4 {[%clk 0:00:29]} 52. Re2 {[%clk 0:00:30]}  h4 {[%clk 0:00:26]} 53. Kc4 {[%clk 0:00:29]}  h3 {[%clk 0:00:24]} 54. gxh3 {[%clk 0:00:28]}  Kxf3 {[%clk 0:00:24]} 55. Rb2 {[%clk 0:00:28]}  Kg3 {[%clk 0:00:24]} 56. Rb3+ {[%clk 0:00:28]}  Kh4 {[%clk 0:00:23]} 57. b6 {[%clk 0:00:28]}  axb6 {[%clk 0:00:23]} 58. axb6 {[%clk 0:00:29]}  Rb7 {[%clk 0:00:21]} 59. Kc5 {[%clk 0:00:28]}  g5 {[%clk 0:00:21]} 60. Kc6 {[%clk 0:00:28]}  Rb8 {[%clk 0:00:21]} 61. b7 {[%clk 0:00:28]} 1-0


[Site "https://www.chess.com"]

[Event "Titled Tuesday Blitz February 15 Early 2022"]
[White "Ambartsumova, Karina"]
[Black "Navara, David"]
[WhiteFideId "4166299"]
[BlackFideId "309095"]
[WhiteElo "2262"]
[BlackElo "2686"]
[Result "0-1"]
[Round "02"]
[TimeControl "180+1"]
[Date "2022.02.15"]
[WhiteClock "0:00:01"]
[BlackClock "0:00:18"]

1. d4 {[%clk 0:02:57]}  Nf6 {[%clk 0:03:00]} 2. Nf3 {[%clk 0:02:56]}  e6 {[%clk 0:02:59]} 3. c4 {[%clk 0:02:56]}  b6 {[%clk 0:02:59]} 4. g3 {[%clk 0:02:55]}  Ba6 {[%clk 0:02:59]} 5. Qc2 {[%clk 0:02:51]}  c5 {[%clk 0:02:54]} 6. Bg2 {[%clk 0:02:48]}  Nc6 {[%clk 0:02:54]} 7. dxc5 {[%clk 0:02:27]}  bxc5 {[%clk 0:02:55]} 8. O-O {[%clk 0:02:26]}  Be7 {[%clk 0:02:52]} 9. b3 {[%clk 0:02:23]}  O-O {[%clk 0:02:44]} 10. Bb2 {[%clk 0:02:23]}  d5 {[%clk 0:02:40]} 11. cxd5 {[%clk 0:02:17]}  exd5 {[%clk 0:02:41]} 12. Nc3 {[%clk 0:02:13]}  d4 {[%clk 0:02:14]} 13. Na4 {[%clk 0:00:58]}  d3 {[%clk 0:02:12]} 14. exd3 {[%clk 0:00:51]}  Bxd3 {[%clk 0:02:13]} 15. Qc3 {[%clk 0:00:50]}  Bxf1 {[%clk 0:02:13]} 16. Rxf1 {[%clk 0:00:51]}  Rc8 {[%clk 0:02:02]} 17. Nxc5 {[%clk 0:00:41]}  Qd5 {[%clk 0:01:03]} 18. Na4 {[%clk 0:00:25]}  Nb4 {[%clk 0:01:00]} 19. Qe3 {[%clk 0:00:24]}  Qd7 {[%clk 0:00:40]} 20. Ne5 {[%clk 0:00:21]}  Qe6 {[%clk 0:00:40]} 21. Qxa7 {[%clk 0:00:20]}  Rc2 {[%clk 0:00:39]} 22. Nc4 {[%clk 0:00:17]}  Nxa2 {[%clk 0:00:35]} 23. Nab6 {[%clk 0:00:16]}  Nc3 {[%clk 0:00:30]} 24. Bxc3 {[%clk 0:00:15]}  Rxc3 {[%clk 0:00:31]} 25. Qa1 {[%clk 0:00:15]}  Rxb3 {[%clk 0:00:19]} 26. Re1 {[%clk 0:00:14]}  Qf5 {[%clk 0:00:20]} 27. Qa2 {[%clk 0:00:06]}  Bc5 {[%clk 0:00:19]} 28. g4 {[%clk 0:00:01]}  Nxg4 {[%clk 0:00:18]} 0-1


[Site "https://www.chess.com"]

[Event "Titled Tuesday Blitz February 15 Early 2022"]
[White "Ardila, Oscar Humberto"]
[Black "Mohammed, Dilshad"]
[WhiteFideId "4404742"]
[BlackFideId "5050421"]
[WhiteElo "1898"]
[BlackElo "2153"]
[Result "0-1"]
[Round "02"]
[TimeControl "180+1"]
[Date "2022.02.15"]
[WhiteClock "0:00:14"]
[BlackClock "0:00:23"]

1. d4 {[%clk 0:03:00]}  d5 {[%clk 0:02:59]} 2. c4 {[%clk 0:03:00]}  e6 {[%clk 0:02:59]} 3. cxd5 {[%clk 0:03:00]}  exd5 {[%clk 0:02:58]} 4. Nc3 {[%clk 0:03:00]}  Nf6 {[%clk 0:02:58]} 5. Nf3 {[%clk 0:03:01]}  Be7 {[%clk 0:02:57]} 6. Bf4 {[%clk 0:02:59]}  c6 {[%clk 0:02:56]} 7. e3 {[%clk 0:02:58]}  O-O {[%clk 0:02:55]} 8. h3 {[%clk 0:02:56]}  b5 {[%clk 0:02:29]} 9. Be2 {[%clk 0:02:57]}  b4 {[%clk 0:02:28]} 10. Nb1 {[%clk 0:02:55]}  Ne4 {[%clk 0:02:26]} 11. Nbd2 {[%clk 0:02:54]}  Bd6 {[%clk 0:02:20]} 12. Bxd6 {[%clk 0:02:51]}  Nxd6 {[%clk 0:02:19]} 13. O-O {[%clk 0:02:50]}  a5 {[%clk 0:02:18]} 14. Rc1 {[%clk 0:02:50]}  a4 {[%clk 0:02:13]} 15. a3 {[%clk 0:02:42]}  b3 {[%clk 0:02:10]} 16. Ne5 {[%clk 0:02:39]}  Qe8 {[%clk 0:01:58]} 17. Rc3 {[%clk 0:02:18]}  f6 {[%clk 0:01:53]} 18. Nd3 {[%clk 0:02:18]}  Nb5 {[%clk 0:01:48]} 19. Rc1 {[%clk 0:02:14]}  Bf5 {[%clk 0:01:43]} 20. Nb4 {[%clk 0:02:12]}  Nd6 {[%clk 0:01:39]} 21. Rc5 {[%clk 0:01:57]}  Nb7 {[%clk 0:01:22]} 22. Rc3 {[%clk 0:01:54]}  Nd6 {[%clk 0:01:17]} 23. Qc1 {[%clk 0:01:51]}  Bd7 {[%clk 0:01:15]} 24. Bd3 {[%clk 0:01:46]}  f5 {[%clk 0:01:12]} 25. Qb1 {[%clk 0:01:45]}  h6 {[%clk 0:01:09]} 26. Rfc1 {[%clk 0:01:44]}  f4 {[%clk 0:01:05]} 27. Bh7+ {[%clk 0:01:42]}  Kh8 {[%clk 0:01:05]} 28. Bg6 {[%clk 0:01:42]}  Qe7 {[%clk 0:01:05]} 29. Nf3 {[%clk 0:01:35]}  fxe3 {[%clk 0:01:00]} 30. Rxe3 {[%clk 0:01:33]}  Qf6 {[%clk 0:01:00]} 31. Bd3 {[%clk 0:01:18]}  Bf5 {[%clk 0:00:46]} 32. Nxc6 {[%clk 0:01:04]}  Bxd3 {[%clk 0:00:39]} 33. Qxd3 {[%clk 0:01:01]}  Nc4 {[%clk 0:00:38]} 34. Nb4 {[%clk 0:00:49]}  Nxe3 {[%clk 0:00:37]} 35. Qxe3 {[%clk 0:00:49]}  Nd7 {[%clk 0:00:37]} 36. Nxd5 {[%clk 0:00:48]}  Qd6 {[%clk 0:00:36]} 37. Nc3 {[%clk 0:00:40]}  Rae8 {[%clk 0:00:36]} 38. Qd3 {[%clk 0:00:39]}  Nf6 {[%clk 0:00:34]} 39. Ne5 {[%clk 0:00:38]}  Rxe5 {[%clk 0:00:32]} 40. Qg3 {[%clk 0:00:33]}  Re6 {[%clk 0:00:30]} 41. Qg6 {[%clk 0:00:33]}  Nd5 {[%clk 0:00:29]} 42. Qd3 {[%clk 0:00:28]}  Nf4 {[%clk 0:00:27]} 43. Qf3 {[%clk 0:00:25]}  Qxd4 {[%clk 0:00:25]} 44. Kh2 {[%clk 0:00:22]}  Qd6 {[%clk 0:00:24]} 45. g3 {[%clk 0:00:20]}  Ng6 {[%clk 0:00:24]} 46. Qe3 {[%clk 0:00:20]}  Rxe3 {[%clk 0:00:24]} 47. fxe3 {[%clk 0:00:20]}  Rf3 {[%clk 0:00:23]} 48. Rd1 {[%clk 0:00:14]}  Qxg3+ {[%clk 0:00:23]} 0-1


[Site "https://www.chess.com"]

[Event "Titled Tuesday Blitz February 15 Early 2022"]
[White "Avila Pavas, Santiago"]
[Black "Toncheva, Nadya"]
[WhiteFideId "4437128"]
[BlackFideId "2924056"]
[WhiteElo "2242"]
[BlackElo "1920"]
[Result "1-0"]
[Round "02"]
[TimeControl "180+1"]
[Date "2022.02.15"]
[WhiteClock "0:00:46"]
[BlackClock "0:00:05"]

1. c4 {[%clk 0:03:00]}  c5 {[%clk 0:03:00]} 2. Nc3 {[%clk 0:02:58]}  Nc6 {[%clk 0:03:01]} 3. g3 {[%clk 0:02:56]}  g6 {[%clk 0:03:01]} 4. Bg2 {[%clk 0:02:56]}  Bg7 {[%clk 0:03:02]} 5. e3 {[%clk 0:02:57]}  e6 {[%clk 0:03:02]} 6. Nge2 {[%clk 0:02:57]}  Nge7 {[%clk 0:03:03]} 7. O-O {[%clk 0:02:58]}  O-O {[%clk 0:03:02]} 8. d4 {[%clk 0:02:59]}  cxd4 {[%clk 0:03:01]} 9. exd4 {[%clk 0:02:59]}  d5 {[%clk 0:03:02]} 10. c5 {[%clk 0:03:00]}  Nf5 {[%clk 0:03:00]} 11. Be3 {[%clk 0:02:57]}  b6 {[%clk 0:02:56]} 12. cxb6 {[%clk 0:02:44]}  Qxb6 {[%clk 0:02:51]} 13. Na4 {[%clk 0:02:42]}  Qa5 {[%clk 0:02:41]} 14. Rc1 {[%clk 0:02:41]}  Nce7 {[%clk 0:02:22]} 15. Nc5 {[%clk 0:02:15]}  Qxa2 {[%clk 0:02:04]} 16. Qd2 {[%clk 0:02:12]}  Nxe3 {[%clk 0:01:51]} 17. fxe3 {[%clk 0:02:11]}  Rb8 {[%clk 0:01:49]} 18. Rc2 {[%clk 0:02:03]}  Rb5 {[%clk 0:01:38]} 19. b4 {[%clk 0:01:36]}  Qa3 {[%clk 0:01:35]} 20. Rb1 {[%clk 0:01:36]}  Bh6 {[%clk 0:00:56]} 21. Rc3 {[%clk 0:01:36]}  Rxb4 {[%clk 0:00:52]} 22. Rxa3 {[%clk 0:01:34]}  Rxb1+ {[%clk 0:00:52]} 23. Kf2 {[%clk 0:01:32]}  Nf5 {[%clk 0:00:52]} 24. g4 {[%clk 0:01:26]}  Nh4 {[%clk 0:00:40]} 25. Rxa7 {[%clk 0:01:06]}  Nxg2 {[%clk 0:00:38]} 26. Kxg2 {[%clk 0:01:07]}  e5 {[%clk 0:00:33]} 27. Nc3 {[%clk 0:01:07]}  Rb8 {[%clk 0:00:27]} 28. Nxd5 {[%clk 0:01:07]}  exd4 {[%clk 0:00:24]} 29. Qxd4 {[%clk 0:01:07]}  Bg7 {[%clk 0:00:23]} 30. Nf6+ {[%clk 0:00:59]}  Kh8 {[%clk 0:00:23]} 31. g5 {[%clk 0:00:58]}  Bf5 {[%clk 0:00:22]} 32. e4 {[%clk 0:00:52]}  Rfd8 {[%clk 0:00:21]} 33. Qe5 {[%clk 0:00:48]}  Rd2+ {[%clk 0:00:14]} 34. Kf3 {[%clk 0:00:47]}  Rbd8 {[%clk 0:00:05]} 35. exf5 {[%clk 0:00:46]} 1-0


[Site "https://www.chess.com"]

[Event "Titled Tuesday Blitz February 15 Early 2022"]
[White "Babazada, Khazar"]
[Black "Khumalo, Keith"]
[WhiteFideId "13413554"]
[BlackFideId "14319470"]
[WhiteElo "2418"]
[BlackElo "1992"]
[Result "0-1"]
[Round "02"]
[TimeControl "180+1"]
[Date "2022.02.15"]
[WhiteClock "0:00:03"]
[BlackClock "0:01:26"]

1. e4 {[%clk 0:03:00]}  c5 {[%clk 0:02:59]} 2. Nf3 {[%clk 0:03:01]}  d6 {[%clk 0:02:59]} 3. d4 {[%clk 0:03:00]}  cxd4 {[%clk 0:03:00]} 4. Nxd4 {[%clk 0:03:01]}  Nf6 {[%clk 0:03:00]} 5. Nc3 {[%clk 0:03:00]}  a6 {[%clk 0:03:01]} 6. h3 {[%clk 0:02:59]}  e6 {[%clk 0:03:00]} 7. g4 {[%clk 0:02:57]}  b5 {[%clk 0:03:00]} 8. Bg2 {[%clk 0:02:55]}  Bb7 {[%clk 0:03:01]} 9. a3 {[%clk 0:02:54]}  Nfd7 {[%clk 0:02:59]} 10. Be3 {[%clk 0:02:50]}  Be7 {[%clk 0:02:59]} 11. g5 {[%clk 0:02:49]}  Nc6 {[%clk 0:02:59]} 12. h4 {[%clk 0:02:48]}  Nde5 {[%clk 0:02:48]} 13. Nxc6 {[%clk 0:02:37]}  Bxc6 {[%clk 0:02:47]} 14. Bd4 {[%clk 0:02:16]}  O-O {[%clk 0:02:35]} 15. Qe2 {[%clk 0:02:13]}  Qc7 {[%clk 0:02:28]} 16. O-O-O {[%clk 0:02:05]}  Rfb8 {[%clk 0:02:26]} 17. f4 {[%clk 0:02:03]}  Nc4 {[%clk 0:02:26]} 18. Rh3 {[%clk 0:01:52]}  a5 {[%clk 0:02:26]} 19. h5 {[%clk 0:01:44]}  e5 {[%clk 0:02:26]} 20. Bf2 {[%clk 0:01:38]}  exf4 {[%clk 0:02:25]} 21. g6 {[%clk 0:01:38]}  Bg5 {[%clk 0:02:18]} 22. gxh7+ {[%clk 0:01:23]}  Kh8 {[%clk 0:02:18]} 23. Bf3 {[%clk 0:01:16]}  Bh6 {[%clk 0:02:18]} 24. Bd4 {[%clk 0:01:12]}  f6 {[%clk 0:02:16]} 25. Rg1 {[%clk 0:01:08]}  Ne5 {[%clk 0:02:12]} 26. Rg6 {[%clk 0:00:41]}  b4 {[%clk 0:02:10]} 27. Nb1 {[%clk 0:00:42]}  Bb5 {[%clk 0:02:08]} 28. Qd2 {[%clk 0:00:35]}  Rc8 {[%clk 0:01:58]} 29. Rxh6 {[%clk 0:00:30]}  gxh6 {[%clk 0:01:59]} 30. Bd1 {[%clk 0:00:31]}  f3 {[%clk 0:01:54]} 31. Rxf3 {[%clk 0:00:26]}  Rf8 {[%clk 0:01:44]} 32. Rg3 {[%clk 0:00:20]}  Qxh7 {[%clk 0:01:41]} 33. Qf4 {[%clk 0:00:11]}  Rac8 {[%clk 0:01:37]} 34. Kd2 {[%clk 0:00:11]}  Rc7 {[%clk 0:01:33]} 35. c3 {[%clk 0:00:11]}  Rg7 {[%clk 0:01:33]} 36. axb4 {[%clk 0:00:08]}  axb4 {[%clk 0:01:33]} 37. cxb4 {[%clk 0:00:09]}  Rg5 {[%clk 0:01:31]} 38. Nc3 {[%clk 0:00:06]}  Bc6 {[%clk 0:01:31]} 39. b5 {[%clk 0:00:06]}  Bb7 {[%clk 0:01:31]} 40. Bc2 {[%clk 0:00:04]}  Rc8 {[%clk 0:01:31]} 41. Rxg5 {[%clk 0:00:04]}  fxg5 {[%clk 0:01:25]} 42. Qf6+ {[%clk 0:00:05]}  Kg8 {[%clk 0:01:24]} 43. Qxd6 {[%clk 0:00:04]}  Nc4+ {[%clk 0:01:24]} 44. Ke2 {[%clk 0:00:04]}  Nxd6 {[%clk 0:01:25]} 45. Bb3+ {[%clk 0:00:05]}  Nf7 {[%clk 0:01:26]} 46. Ke3 {[%clk 0:00:04]}  Re8 {[%clk 0:01:26]} 47. Nd5 {[%clk 0:00:03]}  Qxe4+ {[%clk 0:01:26]} 0-1


[Site "https://www.chess.com"]

[Event "Titled Tuesday Blitz February 15 Early 2022"]
[White "Balaji, Aaravamudhan"]
[Black "Demidov, Mikhail"]
[WhiteFideId "436224"]
[BlackFideId "4197143"]
[WhiteElo "2085"]
[BlackElo "2525"]
[Result "0-1"]
[Round "02"]
[TimeControl "180+1"]
[Date "2022.02.15"]
[WhiteClock "0:01:34"]
[BlackClock "0:01:44"]

1. Nf3 {[%clk 0:03:00]}  g6 {[%clk 0:02:56]} 2. g3 {[%clk 0:03:01]}  Bg7 {[%clk 0:02:56]} 3. Bg2 {[%clk 0:03:02]}  e5 {[%clk 0:02:56]} 4. O-O {[%clk 0:03:03]}  Ne7 {[%clk 0:02:56]} 5. d3 {[%clk 0:03:03]}  O-O {[%clk 0:02:54]} 6. c4 {[%clk 0:03:03]}  c6 {[%clk 0:02:54]} 7. Nc3 {[%clk 0:03:04]}  d5 {[%clk 0:02:54]} 8. cxd5 {[%clk 0:03:03]}  cxd5 {[%clk 0:02:53]} 9. e4 {[%clk 0:03:03]}  d4 {[%clk 0:02:51]} 10. Ne2 {[%clk 0:03:03]}  Nbc6 {[%clk 0:02:50]} 11. Ne1 {[%clk 0:02:55]}  f5 {[%clk 0:02:42]} 12. Nc2 {[%clk 0:02:54]}  fxe4 {[%clk 0:02:39]} 13. Bxe4 {[%clk 0:02:54]}  Bh3 {[%clk 0:02:36]} 14. Bg2 {[%clk 0:02:46]}  Bxg2 {[%clk 0:02:35]} 15. Kxg2 {[%clk 0:02:45]}  Rf5 {[%clk 0:02:17]} 16. g4 {[%clk 0:02:22]}  Rf7 {[%clk 0:02:09]} 17. Ng3 {[%clk 0:02:22]}  Nd5 {[%clk 0:01:59]} 18. Ne4 {[%clk 0:02:21]}  Nf4+ {[%clk 0:01:58]} 19. Bxf4 {[%clk 0:02:21]}  Rxf4 {[%clk 0:01:57]} 20. b4 {[%clk 0:02:08]}  Ne7 {[%clk 0:01:56]} 21. Na3 {[%clk 0:01:54]}  Nd5 {[%clk 0:01:54]} 22. Nc4 {[%clk 0:01:54]}  Qh4 {[%clk 0:01:51]} 23. f3 {[%clk 0:01:36]}  b5 {[%clk 0:01:45]} 24. Qb3 {[%clk 0:01:33]}  bxc4 {[%clk 0:01:44]} 25. Qxc4 {[%clk 0:01:34]}  Rd8 {[%clk 0:01:44]} 0-1


[Site "https://www.chess.com"]

[Event "Titled Tuesday Blitz February 15 Early 2022"]
[White "Batsiashvili, Nino"]
[Black "Lopez Del Alamo, Antonio"]
[WhiteFideId "13602993"]
[BlackFideId "2227339"]
[WhiteElo "2230"]
[BlackElo "2082"]
[Result "1/2-1/2"]
[Round "02"]
[TimeControl "180+1"]
[Date "2022.02.15"]
[WhiteClock "0:00:12"]
[BlackClock "0:00:04"]

1. d4 {[%clk 0:03:00]}  Nf6 {[%clk 0:02:55]} 2. Nf3 {[%clk 0:03:01]}  g6 {[%clk 0:02:54]} 3. c4 {[%clk 0:03:01]}  Bg7 {[%clk 0:02:54]} 4. Nc3 {[%clk 0:03:01]}  O-O {[%clk 0:02:54]} 5. e4 {[%clk 0:03:02]}  d6 {[%clk 0:02:54]} 6. Be2 {[%clk 0:03:03]}  e5 {[%clk 0:02:54]} 7. O-O {[%clk 0:03:03]}  Nc6 {[%clk 0:02:54]} 8. d5 {[%clk 0:03:03]}  Ne7 {[%clk 0:02:55]} 9. Ne1 {[%clk 0:03:04]}  Nd7 {[%clk 0:02:55]} 10. Nd3 {[%clk 0:03:03]}  f5 {[%clk 0:02:55]} 11. Bd2 {[%clk 0:03:03]}  Nf6 {[%clk 0:02:53]} 12. f3 {[%clk 0:03:02]}  f4 {[%clk 0:02:53]} 13. Rc1 {[%clk 0:03:02]}  g5 {[%clk 0:02:53]} 14. c5 {[%clk 0:03:02]}  Ng6 {[%clk 0:02:52]} 15. Nb5 {[%clk 0:03:02]}  Rf7 {[%clk 0:02:51]} 16. Ba5 {[%clk 0:03:02]}  b6 {[%clk 0:02:49]} 17. cxd6 {[%clk 0:03:02]}  cxd6 {[%clk 0:02:47]} 18. Be1 {[%clk 0:03:01]}  a5 {[%clk 0:02:38]} 19. Nf2 {[%clk 0:02:40]}  Bf8 {[%clk 0:02:28]} 20. a4 {[%clk 0:02:37]}  Rg7 {[%clk 0:02:08]} 21. b4 {[%clk 0:02:35]}  h5 {[%clk 0:02:00]} 22. Rc6 {[%clk 0:02:28]}  g4 {[%clk 0:01:25]} 23. fxg4 {[%clk 0:02:27]}  Nh4 {[%clk 0:01:20]} 24. Nd3 {[%clk 0:01:30]}  Nxg4 {[%clk 0:01:16]} 25. Bxh4 {[%clk 0:01:28]}  Qxh4 {[%clk 0:01:15]} 26. Bxg4 {[%clk 0:01:22]}  hxg4 {[%clk 0:01:08]} 27. Nxd6 {[%clk 0:01:08]}  g3 {[%clk 0:00:55]} 28. hxg3 {[%clk 0:00:32]}  fxg3 {[%clk 0:00:45]} 29. Rxf8+ {[%clk 0:00:31]}  Kxf8 {[%clk 0:00:44]} 30. Qf3+ {[%clk 0:00:30]}  Kg8 {[%clk 0:00:39]} 31. Nxe5 {[%clk 0:00:27]}  Ba6 {[%clk 0:00:19]} 32. b5 {[%clk 0:00:24]}  Rf8 {[%clk 0:00:17]} 33. Nf5 {[%clk 0:00:20]}  Qh2+ {[%clk 0:00:16]} 34. Kf1 {[%clk 0:00:20]}  Bc8 {[%clk 0:00:15]} 35. Ng4 {[%clk 0:00:14]}  Qh1+ {[%clk 0:00:14]} 36. Ke2 {[%clk 0:00:13]}  Bxf5 {[%clk 0:00:14]} 37. exf5 {[%clk 0:00:13]}  Qb1 {[%clk 0:00:14]} 38. Nh6+ {[%clk 0:00:12]}  Kh7 {[%clk 0:00:13]} 39. Qh5 {[%clk 0:00:12]}  Re8+ {[%clk 0:00:10]} 40. Re6 {[%clk 0:00:12]}  Rxe6+ {[%clk 0:00:09]} 41. dxe6 {[%clk 0:00:13]}  Qe4+ {[%clk 0:00:09]} 42. Kd2 {[%clk 0:00:13]}  Qd4+ {[%clk 0:00:07]} 43. Ke2 {[%clk 0:00:13]}  Qf2+ {[%clk 0:00:06]} 44. Kd3 {[%clk 0:00:13]}  Qf1+ {[%clk 0:00:05]} 45. Ke4 {[%clk 0:00:13]}  Qe1+ {[%clk 0:00:04]} 46. Kd5 {[%clk 0:00:12]}  Qd2+ {[%clk 0:00:04]} 47. Kc6 {[%clk 0:00:12]}  Qc3+ {[%clk 0:00:03]} 48. Kd5 {[%clk 0:00:11]}  Qc5+ {[%clk 0:00:03]} 49. Ke4 {[%clk 0:00:11]}  Qc4+ {[%clk 0:00:03]} 50. Ke5 {[%clk 0:00:11]}  Qc3+ {[%clk 0:00:03]} 51. Ke4 {[%clk 0:00:11]}  Qc2+ {[%clk 0:00:04]} 52. Ke3 {[%clk 0:00:11]}  Qc3+ {[%clk 0:00:04]} 53. Ke4 {[%clk 0:00:12]}  Qc2+ {[%clk 0:00:04]} 54. Ke3 {[%clk 0:00:12]}  Qc3+ {[%clk 0:00:04]} 55. Ke4 {[%clk 0:00:12]} 1/2-1/2


[Site "https://www.chess.com"]

[Event "Titled Tuesday Blitz February 15 Early 2022"]
[White "Bjerre, Jonas Buhl"]
[Black "Voege, Tobias"]
[WhiteFideId "1444948"]
[BlackFideId "1270513"]
[WhiteElo "2312"]
[BlackElo "2335"]
[Result "0-1"]
[Round "02"]
[TimeControl "180+1"]
[Date "2022.02.15"]
[WhiteClock "0:00:08"]
[BlackClock "0:00:14"]

1. d4 {[%clk 0:03:00]}  d5 {[%clk 0:02:59]} 2. Nf3 {[%clk 0:03:00]}  Nc6 {[%clk 0:03:00]} 3. Bf4 {[%clk 0:02:57]}  Bg4 {[%clk 0:03:00]} 4. e3 {[%clk 0:02:57]}  e6 {[%clk 0:03:00]} 5. Be2 {[%clk 0:02:56]}  Bd6 {[%clk 0:03:00]} 6. Bg3 {[%clk 0:02:52]}  Nf6 {[%clk 0:02:57]} 7. c4 {[%clk 0:02:51]}  O-O {[%clk 0:02:46]} 8. Nc3 {[%clk 0:02:51]}  a6 {[%clk 0:02:39]} 9. O-O {[%clk 0:02:34]}  Bxg3 {[%clk 0:02:36]} 10. hxg3 {[%clk 0:02:34]}  Ne7 {[%clk 0:02:28]} 11. Rc1 {[%clk 0:02:31]}  c6 {[%clk 0:02:25]} 12. Qb3 {[%clk 0:02:31]}  Rb8 {[%clk 0:02:22]} 13. Ne5 {[%clk 0:02:25]}  Bxe2 {[%clk 0:02:19]} 14. Nxe2 {[%clk 0:02:26]}  Ne4 {[%clk 0:02:19]} 15. Qc2 {[%clk 0:02:17]}  Ng6 {[%clk 0:02:15]} 16. Nxg6 {[%clk 0:02:02]}  fxg6 {[%clk 0:02:10]} 17. f3 {[%clk 0:01:59]}  Nd6 {[%clk 0:02:09]} 18. b3 {[%clk 0:01:57]}  Qg5 {[%clk 0:02:04]} 19. Qd3 {[%clk 0:01:50]}  Nf5 {[%clk 0:01:55]} 20. Kf2 {[%clk 0:01:50]}  Rbe8 {[%clk 0:01:51]} 21. Rh1 {[%clk 0:01:45]}  e5 {[%clk 0:01:33]} 22. dxe5 {[%clk 0:01:34]}  Rxe5 {[%clk 0:01:22]} 23. f4 {[%clk 0:01:28]}  Ne7 {[%clk 0:01:21]} 24. Ke1 {[%clk 0:01:11]}  Qf5 {[%clk 0:01:21]} 25. Qxf5 {[%clk 0:01:10]}  Rexf5 {[%clk 0:01:22]} 26. cxd5 {[%clk 0:01:06]}  Rxd5 {[%clk 0:01:19]} 27. Rd1 {[%clk 0:01:04]}  Rfd8 {[%clk 0:01:14]} 28. Rxd5 {[%clk 0:01:00]}  Nxd5 {[%clk 0:01:15]} 29. Kf2 {[%clk 0:00:58]}  Nb4 {[%clk 0:01:05]} 30. a3 {[%clk 0:00:55]}  Nc2 {[%clk 0:01:03]} 31. a4 {[%clk 0:00:52]}  Re8 {[%clk 0:01:03]} 32. Rd1 {[%clk 0:00:42]}  Nxe3 {[%clk 0:00:56]} 33. Rd7 {[%clk 0:00:41]}  Ng4+ {[%clk 0:00:56]} 34. Ke1 {[%clk 0:00:39]}  b5 {[%clk 0:00:53]} 35. Rd6 {[%clk 0:00:36]}  bxa4 {[%clk 0:00:36]} 36. bxa4 {[%clk 0:00:36]}  Rc8 {[%clk 0:00:33]} 37. Kd2 {[%clk 0:00:32]}  Nf6 {[%clk 0:00:31]} 38. Kd3 {[%clk 0:00:27]}  Kf7 {[%clk 0:00:31]} 39. Kc4 {[%clk 0:00:27]}  Ke7 {[%clk 0:00:30]} 40. Rd3 {[%clk 0:00:27]}  Rb8 {[%clk 0:00:24]} 41. Nd4 {[%clk 0:00:25]}  Kd7 {[%clk 0:00:15]} 42. Nb5+ {[%clk 0:00:18]}  Ke7 {[%clk 0:00:15]} 43. Nc7 {[%clk 0:00:17]}  Rb7 {[%clk 0:00:14]} 44. Nxa6 {[%clk 0:00:17]}  Ra7 {[%clk 0:00:13]} 45. Nc5 {[%clk 0:00:17]}  Nd5 {[%clk 0:00:14]} 46. Rb3 {[%clk 0:00:18]}  Kd6 {[%clk 0:00:13]} 47. Ne4+ {[%clk 0:00:17]}  Kc7 {[%clk 0:00:14]} 48. Nc5 {[%clk 0:00:18]}  Nb6+ {[%clk 0:00:14]} 49. Kb4 {[%clk 0:00:18]}  Nd5+ {[%clk 0:00:15]} 50. Ka3 {[%clk 0:00:18]}  Nb6 {[%clk 0:00:14]} 51. Re3 {[%clk 0:00:17]}  Kd6 {[%clk 0:00:14]} 52. Ne4+ {[%clk 0:00:18]}  Kd5 {[%clk 0:00:15]} 53. Nc3+ {[%clk 0:00:18]}  Kc4 {[%clk 0:00:15]} 54. g4 {[%clk 0:00:13]}  Nd5 {[%clk 0:00:15]} 55. Nxd5 {[%clk 0:00:13]}  cxd5 {[%clk 0:00:16]} 56. f5 {[%clk 0:00:13]}  gxf5 {[%clk 0:00:15]} 57. gxf5 {[%clk 0:00:14]}  d4 {[%clk 0:00:16]} 58. Re4 {[%clk 0:00:14]}  Kc3 {[%clk 0:00:16]} 59. Re6 {[%clk 0:00:13]}  Rd7 {[%clk 0:00:14]} 60. Rc6+ {[%clk 0:00:11]}  Kd2 {[%clk 0:00:15]} 61. Kb3 {[%clk 0:00:11]}  d3 {[%clk 0:00:15]} 62. a5 {[%clk 0:00:08]}  Ke1 {[%clk 0:00:14]} 63. Rf6 {[%clk 0:00:08]}  gxf6 {[%clk 0:00:14]} 0-1


[Site "https://www.chess.com"]